[Event "WYCC 2018 G14"]
[Site "Halkidiki"]
[Date "2018.10.22"]
[Round "4"]
[White "Lehaci, Miruna-Daria"]
[Black "He, Emma"]
[Result "1-0"]
[ECO "D47"]
[WhiteElo "1933"]
[BlackElo "1674"]
[Annotator "NA"]
[PlyCount "115"]
[EventDate "2018.10.20"]
[EventType "swiss"]
[EventCountry "GRE"]
[SourceTitle "playchess.com"]
[Source "ChessBase"]
[SourceQuality "1"]
[TimeControl "40/5400+30:1800+30"]

1. d4 {[%emt 0:00:00]} d5 {[%emt 0:00:00]} 2. c4 {[%emt 0:00:00]} e6 {[%emt 0:00:00]} 3. Nc3 {[%emt 0:00:00]} Nf6 {[%emt 0:00:00]} 4. Nf3 {[%emt 0:00:00]} c6 {[%emt 0:00:09]} 5. e3 {[%emt 0:00:25]} Nbd7 {[%emt 0:00:20]} 6. Bd3 {[%emt 0:00:14]} dxc4 {[%emt 0:00:58]} 7. Bxc4 {[%emt 0:00:20]} b5 {[%emt 0:00:53]} 8. Be2 {[%emt 0:02:29]} Bd6 {[%emt 0:01:02]} 9. O-O {[%emt 0:02:42]} O-O {[%emt 0:01:08]} 10. a3 {[%emt 0:05:24]} a5 {[%emt 0:04:30]} 11. e4 {[%emt 0:02:28]} e5 {[%emt 0:11:19]} 12. d5 {[%emt 0:07:19]} cxd5 {[%emt 0:09:50]} 13. Nxb5 {[%emt 0:00:04]} Qb6 $14 {[%emt 0:05:29]} 14. exd5 {[%emt 0:05:23]} Bc5 {[%emt 0:06:04]} 15. Nc3 {[%emt 0:06:04]} Bb7 {[%emt 0:05:29]} 16. Rb1 {[%emt 0:11:14]} Qd6 {[%emt 0:09:02]} 17. b4 {[%emt 0:03:06]} axb4 {[%emt 0:00:30]} 18. axb4 {[%emt 0:00:05]} Bb6 {[%emt 0:02:08]} 19. Qb3 {[%emt 0:05:13]} e4 {[%emt 0:03:51]} 20. Ng5 {[%emt 0:02:10]} Rfe8 {[%emt 0:04:39]} 21. Nb5 {[%emt 0:10:14]} Qe5 {[%emt 0:03:24]} 22. d6 {[%emt 0:00:51]} Bd5 {[%emt 0:00:49]} 23. Qg3 {[%emt 0:02:41]} e3 {[%emt 0:04:31]} 24. Bxe3 {[%emt 0:04:57]} Qxg3 {[%emt 0:01:27]} 25. hxg3 {[%emt 0:00:06]} Rxe3 {[%emt 0:02:25]} 26. fxe3 {[%emt 0:01:18]} Bxe3+ {[%emt 0:00:08]} 27. Kh1 {[%emt 0:00:18]} Bxg5 {[%emt 0:00:47]} 28. Nc3 {[%emt 0:06:58]} Be6 {[%emt 0:03:55]} 29. Bf3 {[%emt 0:02:00]} Rb8 {[%emt 0:00:54]} 30. Ne4 {[%emt 0:03:48]} Nxe4 {[%emt 0:02:49]} 31. Bxe4 {[%emt 0:00:03]} g6 {[%emt 0:02:05]} 32. Rfd1 {[%emt 0:03:36]} Be3 {[%emt 0:03:30]} 33. b5 {[%emt 0:03:27]} Kg7 {[%emt 0:04:13]} 34. Rb2 {[%emt 0:05:44]} Bc5 {[%emt 0:02:34]} 35. Bc6 {[%emt 0:00:48]} Bb6 {[%emt 0:02:13]} 36. Rb4 {[%emt 0:02:57]} Bc5 {[%emt 0:01:25]} 37. Rbb1 {[%emt 0:00:14]} Bb6 {[%emt 0:00:06]} 38. Rd2 {[%emt 0:01:19]} Kf6 {[%emt 0:02:29]} 39. Rf1+ {[%emt 0:00:48]} Kg7 {[%emt 0:00:07]} 40. Bd5 {[%emt 0:00:00]} Bxd5 {[%emt 0:00:00]} 41. Rxd5 {[%emt 0:01:25]} Re8 {[%emt 0:11:34]} 42. g4 {[%emt 0:12:26]} f6 {[%emt 0:01:50]} 43. Rc1 {[%emt 0:01:50]} Kf7 {[%emt 0:02:50]} 44. g3 {[%emt 0:00:44]} Ne5 {[%emt 0:03:45]} 45. g5 {[%emt 0:04:45]} Nf3 {[%emt 0:08:43]} 46. Rf1 {[%emt 0:03:32]} Ke6 {[%emt 0:03:31]} 47. d7 {[%emt 0:00:54]} Rd8 {[%emt 0:00:33]} 48. Rfd1 {[%emt 0:01:30]} Bc7 {[%emt 0:01:54]} 49. b6 {[%emt 0:01:45]} Be5 {[%emt 0:01:35]} 50. gxf6 {[%emt 0:00:24]} Ng5 {[%emt 0:00:30]} 51. Rc5 {[%emt 0:00:57]} Nf7 {[%emt 0:00:42]} 52. b7 {[%emt 0:01:23]} Kxf6 {[%emt 0:00:28]} 53. Rc8 {[%emt 0:00:30]} Ke7 {[%emt 0:00:26]} 54. Re1 {[%emt 0:03:33]} Kxd7 {[%emt 0:00:49]} 55. Rxe5 {[%emt 0:00:19]} Rxc8 {[%emt 0:00:10]} 56. Re7+ {[%emt 0:00:20]} Kd8 {[%emt 0:00:45]} 57. bxc8=Q+ {[%emt 0:00:12]} Kxc8 {[%emt 0:00:22]} 58. Rxf7 {[%emt 0:00:04]} 1-0

[Event "WYCC 2018 G14"]
[Site "Halkidiki"]
[Date "2018.10.22"]
[Round "4"]
[White "Kuhar, Larisa"]
[Black "Figueroa Bernal, Julia Dennis"]
[Result "1-0"]
[ECO "B44"]
[WhiteElo "1916"]
[BlackElo "1650"]
[Annotator "NA"]
[PlyCount "55"]
[EventDate "2018.10.20"]
[EventType "swiss"]
[EventCountry "GRE"]
[SourceTitle "playchess.com"]
[Source "ChessBase"]
[SourceQuality "1"]
[TimeControl "40/5400+30:1800+30"]

1. e4 {[%emt 0:00:00]} c5 {[%emt 0:00:00]} 2. Nf3 {[%emt 0:00:00]} e6 {[%emt 0:00:00]} 3. d4 {[%emt 0:00:00]} cxd4 {[%emt 0:00:00]} 4. Nxd4 {[%emt 0:00:00]} Nc6 {[%emt 0:00:04]} 5. Be2 {[%emt 0:00:57]} Qc7 {[%emt 0:02:11]} 6. Nc3 {[%emt 0:00:37]} a6 {[%emt 0:00:10]} 7. O-O {[%emt 0:00:22]} Nf6 {[%emt 0:00:06]} 8. Be3 {[%emt 0:00:41]} Be7 {[%emt 0:00:35]} 9. f4 {[%emt 0:01:20]} d6 {[%emt 0:00:18]} 10. Qe1 {[%emt 0:01:08]} h5 {[%emt 0:02:00]} 11. Qg3 {[%emt 0:10:38]} g6 {[%emt 0:04:36]} 12. Rae1 {[%emt 0:13:04]} Bd7 {[%emt 0:07:00]} 13. Nxc6 {[%emt 0:03:41]} Bxc6 {[%emt 0:03:54]} 14. Bd4 {[%emt 0:00:17]} Rh7 {[%emt 0:06:52]} 15. Bd3 {[%emt 0:01:45]} O-O-O {[%emt 0:02:27]} 16. a4 {[%emt 0:07:10]} Ng4 {[%emt 0:02:08]} 17. h3 {[%emt 0:04:17]} e5 {[%emt 0:04:21]} 18. Bf2 {[%emt 0:13:53]} Nxf2 {[%emt 0:02:08]} 19. Qxf2 {[%emt 0:00:15]} Kb8 {[%emt 0:01:16]} 20. Kh1 {[%emt 0:08:00]} g5 {[%emt 0:02:01]} 21. b4 {[%emt 0:02:32]} Rg8 {[%emt 0:14:48]} 22. b5 {[%emt 0:01:14]} axb5 {[%emt 0:00:58]} 23. axb5 {[%emt 0:00:07]} Bd7 {[%emt 0:01:28]} 24. Nd5 {[%emt 0:00:16]} Qd8 {[%emt 0:02:01]} 25. Ra1 {[%emt 0:01:29]} Be6 {[%emt 0:00:32]} 26. Qa7+ {[%emt 0:01:41]} Kc8 {[%emt 0:00:32]} 27. Qa8+ {[%emt 0:01:08]} Kd7 {[%emt 0:00:23]} 28. Qxb7+ {[%emt 0:00:11]} 1-0

[Event "WYCC 2018 G14"]
[Site "Halkidiki"]
[Date "2018.10.22"]
[Round "4"]
[White "Baiburina, Kamilla"]
[Black "Krasteva, Beloslava"]
[Result "1/2-1/2"]
[ECO "B50"]
[WhiteElo "1907"]
[BlackElo "2089"]
[Annotator "NA"]
[PlyCount "116"]
[EventDate "2018.10.20"]
[EventType "swiss"]
[EventCountry "GRE"]
[SourceTitle "playchess.com"]
[Source "ChessBase"]
[SourceQuality "1"]
[TimeControl "40/5400+30:1800+30"]

1. e4 {[%emt 0:00:00]} c5 {[%emt 0:00:00]} 2. Nf3 {[%emt 0:00:00]} d6 {[%emt 0:00:00]} 3. c3 {[%emt 0:00:00]} Nf6 {[%emt 0:00:03]} 4. Be2 {[%emt 0:00:04]} g6 {[%emt 0:00:24]} 5. O-O {[%emt 0:00:20]} Bg7 {[%emt 0:00:17]} 6. Bb5+ {[%emt 0:00:23]} Nc6 {[%emt 0:00:24]} 7. Re1 {[%emt 0:01:09]} O-O {[%emt 0:00:49]} 8. d4 {[%emt 0:01:29]} Qb6 {[%emt 0:00:40]} 9. Bxc6 {[%emt 0:12:06]} bxc6 {[%emt 0:01:30]} 10. Nbd2 {[%emt 0:02:42]} cxd4 {[%emt 0:01:49]} 11. cxd4 {[%emt 0:05:27]} a5 12. Qc2 $15 {[%emt 0:00:30]} Ba6 {[%emt 0:05:47]} 13. b3 Rfc8 {[%emt 0:04:21]} 14. Bb2 {[%emt 0:04:53]} Rab8 15. Nc4 {[%emt 0:02:26]} Bxc4 {[%emt 0:11:16]} 16. Qxc4 {[%emt 0:00:05]} Nxe4 {[%emt 0:01:21]} 17. Qd3 {[%emt 0:06:22]} d5 {[%emt 0:01:10]} 18. Nd2 {[%emt 0:09:16]} Nxd2 {[%emt 0:01:38]} 19. Qxd2 {[%emt 0:02:36]} e6 {[%emt 0:00:47]} 20. Bc3 {[%emt 0:03:17]} Qa7 {[%emt 0:02:36]} 21. Rec1 {[%emt 0:10:02]} a4 {[%emt 0:19:47]} 22. b4 {[%emt 0:10:34]} Re8 {[%emt 0:04:35]} 23. a3 {[%emt 0:03:49]} f6 24. Bb2 Rb6 {[%emt 0:10:19]} 25. Re1 {[%emt 0:06:08]} Qd7 {[%emt 0:01:33]} 26. Qf4 {[%emt 0:03:38]} Qf7 {[%emt 0:06:26]} 27. Qe3 {[%emt 0:01:15]} Rbb8 {[%emt 0:00:47]} 28. Rac1 {[%emt 0:01:16]} Qb7 {[%emt 0:01:49]} 29. Qg3 {[%emt 0:01:46]} Rbc8 {[%emt 0:03:27]} 30. Rc5 {[%emt 0:02:19]} Bf8 {[%emt 0:01:29]} 31. Ra5 {[%emt 0:01:28]} Qd7 {[%emt 0:05:19]} 32. Qf4 {[%emt 0:03:22]} Bg7 {[%emt 0:03:15]} 33. Rxa4 {[%emt 0:02:43]} c5 {[%emt 0:00:19]} 34. Ra6 {[%emt 0:00:53]} cxb4 {[%emt 0:00:56]} 35. axb4 {[%emt 0:00:23]} Rc4 {[%emt 0:05:31]} 36. Qd2 {[%emt 0:02:30]} Qc8 {[%emt 0:02:37]} 37. b5 {[%emt 0:01:04]} Bf8 {[%emt 0:01:39]} 38. Qf4 {[%emt 0:01:18]} Rc2 {[%emt 0:01:43]} 39. Ba1 {[%emt 0:01:10]} Bb4 {[%emt 0:01:57]} 40. Rd1 {[%emt 0:00:00]} f5 {[%emt 0:00:00]} 41. g3 {[%emt 0:02:27]} Qb8 {[%emt 0:09:15]} 42. Rxe6 {[%emt 0:09:44]} Qxb5 {[%emt 0:01:01]} 43. Rxe8+ {[%emt 0:02:15]} Qxe8 {[%emt 0:00:07]} 44. Rb1 {[%emt 0:04:08]} Rc4 {[%emt 0:03:52]} 45. Bb2 {[%emt 0:04:06]} Rc6 {[%emt 0:07:29]} 46. Qe5 {[%emt 0:03:36]} Qxe5 {[%emt 0:02:07]} 47. dxe5 {[%emt 0:00:01]} Kf7 {[%emt 0:00:20]} 48. Bd4 {[%emt 0:02:02]} Rc4 {[%emt 0:00:27]} 49. Rd1 {[%emt 0:01:36]} Ke6 {[%emt 0:00:41]} 50. Kg2 {[%emt 0:00:49]} g5 {[%emt 0:01:36]} 51. f4 {[%emt 0:03:44]} Rc2+ 52. Kf3 {[%emt 0:00:02]} g4+ {[%emt 0:07:21]} 53. Ke3 {[%emt 0:00:46]} Rxh2 {[%emt 0:01:49]} 54. Rb1 {[%emt 0:00:31]} Ba5 {[%emt 0:00:34]} 55. Ra1 {[%emt 0:00:24]} Bd8 {[%emt 0:00:22]} 56. Ra6+ {[%emt 0:01:34]} Kf7 57. Ra7+ {[%emt 0:00:35]} Ke8 {[%emt 0:01:18]} 58. Ra8 Rh6 1/2-1/2

[Event "WYCC 2018 G14"]
[Site "Halkidiki"]
[Date "2018.10.22"]
[Round "4"]
[White "Nguyen, Thien Ngan"]
[Black "Djordjevic, Nevena"]
[Result "1-0"]
[ECO "B44"]
[WhiteElo "1888"]
[BlackElo "1704"]
[Annotator "NA"]
[PlyCount "117"]
[EventDate "2018.10.20"]
[EventType "swiss"]
[EventCountry "GRE"]
[SourceTitle "playchess.com"]
[Source "ChessBase"]
[SourceQuality "1"]
[TimeControl "40/5400+30:1800+30"]

1. e4 {[%emt 0:00:00]} c5 {[%emt 0:00:00]} 2. Nf3 {[%emt 0:00:00]} e6 {[%emt 0:00:00]} 3. d4 cxd4 {[%emt 0:00:00]} 4. Nxd4 {[%emt 0:00:00]} Nc6 {[%emt 0:00:00]} 5. Nb5 {[%emt 0:00:03]} d6 {[%emt 0:00:17]} 6. c4 {[%emt 0:00:06]} Nf6 {[%emt 0:06:11]} 7. N1c3 {[%emt 0:00:15]} a6 {[%emt 0:01:47]} 8. Na3 {[%emt 0:00:09]} Be7 {[%emt 0:02:48]} 9. Be2 {[%emt 0:00:32]} O-O {[%emt 0:00:17]} 10. O-O {[%emt 0:00:24]} b6 {[%emt 0:15:20]} 11. Be3 {[%emt 0:00:54]} Qc7 {[%emt 0:11:47]} 12. f3 {[%emt 0:00:59]} Bb7 {[%emt 0:10:05]} 13. Rc1 {[%emt 0:01:34]} Ne5 {[%emt 0:01:02]} 14. Qd2 Rac8 {[%emt 0:02:41]} 15. Rfd1 {[%emt 0:04:08]} Rfd8 {[%emt 0:01:27]} 16. Qe1 {[%emt 0:01:54]} Ba8 {[%emt 0:09:16]} 17. Qf2 {[%emt 0:02:34]} Ned7 {[%emt 0:02:31]} 18. Rc2 {[%emt 0:05:06]} Qb8 {[%emt 0:02:36]} 19. Rcd2 {[%emt 0:02:08]} Bc6 {[%emt 0:03:59]} 20. Nc2 {[%emt 0:06:27]} Qc7 {[%emt 0:10:07]} 21. Kh1 {[%emt 0:02:44]} Rb8 {[%emt 0:01:02]} 22. Qg3 {[%emt 0:07:13]} Ne5 {[%emt 0:02:41]} 23. f4 {[%emt 0:05:55]} Ned7 {[%emt 0:01:52]} 24. Bf3 {[%emt 0:07:38]} Nc5 {[%emt 0:00:42]} 25. Bxc5 {[%emt 0:01:34]} bxc5 {[%emt 0:02:57]} 26. b3 {[%emt 0:03:46]} Qa5 {[%emt 0:03:08]} 27. Rd3 {[%emt 0:01:28]} Qc7 {[%emt 0:04:08]} 28. Kg1 {[%emt 0:02:23]} Qb7 {[%emt 0:01:06]} 29. Re3 {[%emt 0:06:38]} Rd7 {[%emt 0:01:27]} 30. Rde1 {[%emt 0:02:11]} Rbd8 {[%emt 0:00:47]} 31. Qf2 {[%emt 0:06:21]} Bf8 {[%emt 0:00:34]} 32. e5 {[%emt 0:07:27]} Ne8 {[%emt 0:00:52]} 33. Be4 {[%emt 0:02:55]} g6 {[%emt 0:00:56]} 34. Bxc6 {[%emt 0:03:16]} Qxc6 {[%emt 0:00:05]} 35. exd6 {[%emt 0:00:09]} Nxd6 {[%emt 0:00:27]} 36. Re5 {[%emt 0:00:26]} Nf5 {[%emt 0:00:51]} 37. Ne4 {[%emt 0:00:31]} Bg7 {[%emt 0:02:10]} 38. Rxc5 {[%emt 0:10:39]} Qb7 {[%emt 0:00:19]} 39. Rxf5 {[%emt 0:02:59]} exf5 {[%emt 0:00:41]} 40. Nc5 {[%emt 0:00:00]} Qc7 {[%emt 0:00:00]} 41. Nxd7 {[%emt 0:01:09]} Qxd7 {[%emt 0:00:50]} 42. h3 {[%emt 0:03:00]} Bc3 {[%emt 0:05:33]} 43. Re2 {[%emt 0:02:42]} Qd3 {[%emt 0:09:33]} 44. Kh2 Bd2 {[%emt 0:02:20]} 45. Ne3 {[%emt 0:04:59]} Rd4 {[%emt 0:03:35]} 46. Nd5 {[%emt 0:01:45]} Kg7 {[%emt 0:02:55]} 47. Re7 {[%emt 0:07:54]} Re4 {[%emt 0:03:24]} 48. Qh4 {[%emt 0:03:01]} Qd4 {[%emt 0:02:30]} 49. Rxe4 {[%emt 0:06:38]} fxe4 {[%emt 0:00:05]} 50. Qg4 {[%emt 0:01:55]} Qf2 {[%emt 0:01:31]} 51. f5 {[%emt 0:04:14]} Qxf5 {[%emt 0:01:08]} 52. Qxf5 {[%emt 0:00:07]} gxf5 {[%emt 0:00:04]} 53. Kg3 {[%emt 0:00:35]} Kg6 {[%emt 0:02:07]} 54. b4 {[%emt 0:00:59]} h5 {[%emt 0:01:55]} 55. c5 {[%emt 0:01:33]} h4+ {[%emt 0:00:16]} 56. Kf2 {[%emt 0:00:31]} f4 {[%emt 0:00:37]} 57. c6 {[%emt 0:00:17]} e3+ {[%emt 0:00:34]} 58. Ke2 {[%emt 0:00:10]} a5 {[%emt 0:00:33]} 59. c7 {[%emt 0:00:06]} 1-0

[Event "WYCC 2018 G14"]
[Site "Halkidiki"]
[Date "2018.10.22"]
[Round "4"]
[White "Lomaia, Diana"]
[Black "Yellamraju, Aparna"]
[Result "1-0"]
[ECO "C07"]
[WhiteElo "1876"]
[BlackElo "1518"]
[Annotator "NA"]
[PlyCount "121"]
[EventDate "2018.10.20"]
[EventType "swiss"]
[EventCountry "GRE"]
[SourceTitle "playchess.com"]
[Source "ChessBase"]
[SourceQuality "1"]
[TimeControl "40/5400+30:1800+30"]

1. e4 {[%emt 0:00:00]} e6 {[%emt 0:00:00]} 2. d4 {[%emt 0:00:00]} d5 {[%emt 0:00:00]} 3. Nd2 {[%emt 0:00:14]} c5 {[%emt 0:00:06]} 4. exd5 {[%emt 0:00:33]} Qxd5 {[%emt 0:00:11]} 5. Ngf3 {[%emt 0:01:00]} cxd4 {[%emt 0:00:18]} 6. Bc4 {[%emt 0:00:29]} Qd6 {[%emt 0:02:02]} 7. O-O {[%emt 0:01:51]} Nf6 {[%emt 0:00:12]} 8. Nb3 {[%emt 0:01:07]} Nc6 {[%emt 0:00:25]} 9. Nbxd4 {[%emt 0:01:58]} Nxd4 {[%emt 0:00:47]} 10. Nxd4 {[%emt 0:01:42]} a6 {[%emt 0:00:24]} 11. a4 {[%emt 0:02:54]} Qc7 {[%emt 0:02:09]} 12. Bd3 {[%emt 0:06:52]} Bd6 {[%emt 0:01:01]} 13. h3 {[%emt 0:00:55]} O-O {[%emt 0:00:48]} 14. c3 {[%emt 0:07:28]} Re8 {[%emt 0:16:59]} 15. Re1 {[%emt 0:05:40]} Bd7 {[%emt 0:10:40]} 16. Bd2 {[%emt 0:15:55]} Rad8 {[%emt 0:04:25]} 17. Qb1 {[%emt 0:05:23]} h6 {[%emt 0:02:50]} 18. b4 {[%emt 0:07:59]} Nd5 {[%emt 0:07:33]} 19. c4 {[%emt 0:06:51]} Nf4 {[%emt 0:01:57]} 20. Bxf4 {[%emt 0:02:26]} Bxf4 {[%emt 0:00:17]} 21. Nf3 {[%emt 0:04:23]} b6 {[%emt 0:26:39]} 22. a5 {[%emt 0:03:47]} Rb8 {[%emt 0:05:06]} 23. axb6 {[%emt 0:01:32]} Qxb6 {[%emt 0:01:05]} 24. Re4 {[%emt 0:01:12]} e5 {[%emt 0:04:07]} 25. c5 {[%emt 0:01:34]} Qc7 {[%emt 0:03:38]} 26. Rxa6 {[%emt 0:05:28]} Bc6 {[%emt 0:07:54]} 27. Re1 {[%emt 0:01:10]} Bxf3 {[%emt 0:01:04]} 28. gxf3 {[%emt 0:00:16]} Qc8 {[%emt 0:00:28]} 29. Kg2 {[%emt 0:02:49]} Bd2 {[%emt 0:00:22]} 30. Re4 {[%emt 0:01:31]} f5 {[%emt 0:00:44]} 31. Qa2+ {[%emt 0:02:53]} Kh8 {[%emt 0:00:40]} 32. Rc4 {[%emt 0:01:19]} Bxb4 {[%emt 0:00:08]} 33. Rb6 {[%emt 0:01:42]} Rxb6 {[%emt 0:00:21]} 34. cxb6 {[%emt 0:00:03]} Bc5 {[%emt 0:00:11]} 35. Qc2 {[%emt 0:00:38]} Qd8 {[%emt 0:00:37]} 36. Rxc5 {[%emt 0:00:40]} Qxb6 {[%emt 0:01:14]} 37. Bxf5 {[%emt 0:00:26]} Qf6 {[%emt 0:00:17]} 38. Rc8 {[%emt 0:00:35]} Rd8 {[%emt 0:00:35]} 39. Rxd8+ {[%emt 0:00:49]} Qxd8 {[%emt 0:00:01]} 40. Qc8 {[%emt 0:00:00]} Qxc8 {[%emt 0:00:00]} 41. Bxc8 {[%emt 0:00:11]} Kg8 {[%emt 0:00:17]} 42. Kg3 {[%emt 0:01:01]} Kf7 {[%emt 0:00:07]} 43. Kg4 {[%emt 0:00:47]} Kf6 {[%emt 0:00:07]} 44. h4 {[%emt 0:00:35]} Kg6 {[%emt 0:02:12]} 45. Bf5+ {[%emt 0:01:33]} Kf6 {[%emt 0:00:14]} 46. h5 {[%emt 0:01:07]} Ke7 {[%emt 0:00:36]} 47. Bc8 {[%emt 0:00:16]} Kf6 {[%emt 0:00:18]} 48. Ba6 {[%emt 0:00:23]} Ke6 {[%emt 0:00:15]} 49. Bc4+ {[%emt 0:00:11]} Kf6 {[%emt 0:00:07]} 50. Bb3 {[%emt 0:00:47]} g6 {[%emt 0:00:56]} 51. hxg6 {[%emt 0:00:21]} Kxg6 {[%emt 0:00:05]} 52. Bc2+ {[%emt 0:00:04]} Kf6 {[%emt 0:00:13]} 53. Kh5 {[%emt 0:00:07]} Kg7 {[%emt 0:00:12]} 54. Be4 {[%emt 0:00:07]} Kf6 {[%emt 0:00:08]} 55. Kxh6 {[%emt 0:00:10]} Ke6 {[%emt 0:00:07]} 56. Kg6 {[%emt 0:00:09]} Ke7 {[%emt 0:00:10]} 57. Kf5 {[%emt 0:00:04]} Kf7 {[%emt 0:00:10]} 58. Kxe5 {[%emt 0:00:06]} Kf8 {[%emt 0:00:06]} 59. Kf6 {[%emt 0:00:46]} Ke8 {[%emt 0:00:06]} 60. Kg7 {[%emt 0:00:15]} Ke7 {[%emt 0:00:06]} 61. f4 {[%emt 0:00:09]} 1-0

[Event "WYCC 2018 G14"]
[Site "Halkidiki"]
[Date "2018.10.22"]
[Round "4"]
[White "Kasaeva, Sofiia"]
[Black "Wikar, Martyna"]
[Result "0-1"]
[ECO "B33"]
[WhiteElo "1874"]
[BlackElo "2024"]
[Annotator "NA"]
[PlyCount "108"]
[EventDate "2018.10.20"]
[EventType "swiss"]
[EventCountry "GRE"]
[SourceTitle "playchess.com"]
[Source "ChessBase"]
[SourceQuality "1"]
[TimeControl "40/5400+30:1800+30"]

1. e4 {[%emt 0:00:00]} c5 {[%emt 0:00:00]} 2. Nf3 {[%emt 0:00:00]} Nc6 {[%emt 0:00:00]} 3. d4 {[%emt 0:00:00]} cxd4 {[%emt 0:00:00]} 4. Nxd4 {[%emt 0:00:00]} Nf6 {[%emt 0:00:00]} 5. Nc3 {[%emt 0:00:04]} e5 {[%emt 0:00:09]} 6. Ndb5 {[%emt 0:00:12]} d6 {[%emt 0:00:11]} 7. Bg5 {[%emt 0:00:15]} a6 {[%emt 0:00:13]} 8. Na3 {[%emt 0:00:06]} b5 {[%emt 0:00:11]} 9. Nd5 {[%emt 0:00:13]} Be7 {[%emt 0:00:08]} 10. Bxf6 {[%emt 0:00:07]} Bxf6 {[%emt 0:00:06]} 11. c3 {[%emt 0:00:28]} Bg5 {[%emt 0:00:24]} 12. Nc2 {[%emt 0:00:17]} Rb8 {[%emt 0:00:22]} 13. Ncb4 {[%emt 0:14:01]} Nxb4 {[%emt 0:08:15]} 14. Nxb4 {[%emt 0:00:27]} Qd7 {[%emt 0:04:09]} 15. Be2 {[%emt 0:03:32]} O-O {[%emt 0:00:47]} 16. O-O {[%emt 0:00:53]} a5 {[%emt 0:04:09]} 17. Nd5 {[%emt 0:01:15]} Qb7 {[%emt 0:01:12]} 18. Qd3 {[%emt 0:04:05]} Be6 {[%emt 0:02:41]} 19. Rfd1 {[%emt 0:04:18]} Kh8 {[%emt 0:03:13]} 20. Bf3 {[%emt 0:17:45]} g6 {[%emt 0:02:36]} 21. Qe2 {[%emt 0:15:13]} Kg7 {[%emt 0:05:10]} 22. Qd3 {[%emt 0:04:45]} Qd7 {[%emt 0:06:05]} 23. Ne3 {[%emt 0:04:46]} Rfd8 {[%emt 0:01:44]} 24. Qe2 {[%emt 0:03:16]} Rb6 {[%emt 0:06:27]} 25. Nd5 {[%emt 0:02:11]} Rb7 {[%emt 0:01:23]} 26. Ne3 {[%emt 0:02:00]} Rc8 {[%emt 0:03:43]} 27. Nd5 {[%emt 0:04:52]} Rc5 {[%emt 0:04:25]} 28. Ne3 {[%emt 0:01:25]} Rb6 {[%emt 0:03:36]} 29. Qd3 {[%emt 0:05:17]} Qc7 {[%emt 0:04:44]} 30. Qe2 {[%emt 0:02:42]} b4 {[%emt 0:04:45]} 31. cxb4 {[%emt 0:01:15]} Rxb4 {[%emt 0:01:14]} 32. b3 {[%emt 0:01:17]} a4 {[%emt 0:02:38]} 33. bxa4 {[%emt 0:01:18]} Rxa4 {[%emt 0:00:41]} 34. Nd5 {[%emt 0:06:00]} Bxd5 {[%emt 0:03:15]} 35. Rxd5 {[%emt 0:00:22]} Rc2 {[%emt 0:03:24]} 36. Qd3 {[%emt 0:02:35]} Raxa2 {[%emt 0:03:28]} 37. Rxa2 {[%emt 0:00:16]} Rxa2 {[%emt 0:00:05]} 38. Qf1 {[%emt 0:00:54]} Qb6 {[%emt 0:01:28]} 39. Be2 {[%emt 0:00:35]} Be3 {[%emt 0:09:52]} 40. fxe3 {[%emt 0:00:00]} Qxe3+ {[%emt 0:00:00]} 41. Qf2 {[%emt 0:10:45]} Rxe2 {[%emt 0:00:29]} 42. Qxe3 {[%emt 0:00:09]} Rxe3 {[%emt 0:00:06]} 43. Rxd6 {[%emt 0:00:09]} Rxe4 {[%emt 0:00:04]} 44. Kf2 {[%emt 0:00:26]} Ra4 {[%emt 0:01:23]} 45. Ke3 {[%emt 0:02:36]} h5 {[%emt 0:01:09]} 46. Rd5 {[%emt 0:02:24]} Kf6 {[%emt 0:00:15]} 47. Rd2 {[%emt 0:00:39]} Ra3+ {[%emt 0:00:48]} 48. Ke2 {[%emt 0:00:32]} Kf5 {[%emt 0:00:10]} 49. Rb2 {[%emt 0:00:17]} g5 {[%emt 0:00:38]} 50. Kf1 {[%emt 0:00:27]} Ra4 {[%emt 0:01:08]} 51. Kf2 {[%emt 0:00:37]} h4 {[%emt 0:00:22]} 52. Rc2 {[%emt 0:02:07]} Ra3 {[%emt 0:00:23]} 53. Rb2 {[%emt 0:01:55]} Kf4 {[%emt 0:00:35]} 54. Ke2 {[%emt 0:01:40]} g4 {[%emt 0:01:42]} 0-1

[Event "WYCC 2018 G14"]
[Site "Halkidiki"]
[Date "2018.10.22"]
[Round "4"]
[White "Velea, Anne-Marie"]
[Black "Gregurkova, Nikola"]
[Result "1-0"]
[ECO "B01"]
[WhiteElo "1859"]
[BlackElo "1627"]
[Annotator "NA"]
[PlyCount "75"]
[EventDate "2018.10.20"]
[EventType "swiss"]
[EventCountry "GRE"]
[SourceTitle "playchess.com"]
[Source "ChessBase"]
[SourceQuality "1"]
[TimeControl "40/5400+30:1800+30"]

1. e4 {[%emt 0:00:00]} d5 {[%emt 0:00:00]} 2. exd5 {[%emt 0:00:00]} Qxd5 {[%emt 0:00:00]} 3. Nc3 {[%emt 0:00:00]} Qa5 {[%emt 0:00:04]} 4. d4 {[%emt 0:00:32]} Nf6 {[%emt 0:00:44]} 5. Bc4 {[%emt 0:01:16]} Bg4 {[%emt 0:01:36]} 6. Nf3 {[%emt 0:00:54]} Nc6 {[%emt 0:04:26]} 7. Bd2 {[%emt 0:15:38]} Qh5 {[%emt 0:29:47]} 8. Bb5 {[%emt 0:26:09]} O-O-O {[%emt 0:09:31]} 9. Bxc6 {[%emt 0:01:10]} bxc6 {[%emt 0:00:57]} 10. Qe2 {[%emt 0:01:29]} Bxf3 {[%emt 0:06:41]} 11. gxf3 {[%emt 0:02:05]} Kb7 {[%emt 0:03:59]} 12. Be3 {[%emt 0:05:07]} e6 {[%emt 0:04:57]} 13. O-O-O {[%emt 0:02:39]} Bb4 {[%emt 0:05:09]} 14. Rd3 {[%emt 0:06:33]} Ka8 {[%emt 0:04:15]} 15. a3 {[%emt 0:02:35]} Ba5 {[%emt 0:01:47]} 16. Na4 {[%emt 0:03:29]} Bb6 {[%emt 0:02:05]} 17. c4 {[%emt 0:02:27]} Qa5 {[%emt 0:08:00]} 18. Qc2 {[%emt 0:04:03]} c5 {[%emt 0:02:42]} 19. Nxc5 {[%emt 0:08:47]} Bxc5 {[%emt 0:01:20]} 20. dxc5 {[%emt 0:00:11]} c6 {[%emt 0:02:03]} 21. Rhd1 {[%emt 0:00:52]} Qc7 {[%emt 0:01:06]} 22. Rd6 {[%emt 0:00:17]} Rd7 {[%emt 0:01:30]} 23. Qa4 {[%emt 0:01:28]} Rhd8 {[%emt 0:01:34]} 24. Qb4 {[%emt 0:02:49]} Ne8 {[%emt 0:01:26]} 25. Rxd7 {[%emt 0:00:17]} Rxd7 {[%emt 0:00:06]} 26. Rxd7 {[%emt 0:00:38]} Qxd7 {[%emt 0:00:06]} 27. Qd2 {[%emt 0:00:52]} Qxd2+ {[%emt 0:02:04]} 28. Kxd2 {[%emt 0:00:01]} Kb7 {[%emt 0:00:53]} 29. b4 {[%emt 0:00:11]} a6 {[%emt 0:00:12]} 30. a4 {[%emt 0:01:11]} e5 {[%emt 0:01:10]} 31. f4 {[%emt 0:02:34]} e4 {[%emt 0:02:12]} 32. Kc3 {[%emt 0:01:30]} f5 {[%emt 0:00:47]} 33. Kd4 {[%emt 0:01:46]} g6 {[%emt 0:01:21]} 34. Ke5 {[%emt 0:00:10]} Kc7 {[%emt 0:00:36]} 35. Ke6 {[%emt 0:02:23]} Kd8 {[%emt 0:00:53]} 36. Bd4 {[%emt 0:01:15]} h6 {[%emt 0:00:28]} 37. h4 {[%emt 0:01:33]} Kc7 {[%emt 0:00:36]} 38. Ke7 {[%emt 0:00:20]} 1-0